fUSD/lending_fUSD_20240613
["ID","MTS","AMOUNT","RATE_DAILY","PERIOD"]
[329373911,1718290394598,-500.98,0.00029863,3]
[329373912,1718290394614,-182.27,0.00029863,3]
[329373913,1718290394641,-809.41,0.00029863,3]
[329373914,1718290394652,-507.94,0.00029863,3]
[329373915,1718290394684,-1934.26,0.00029863,3]
[329373916,1718290394700,-544.35,0.00029863,3]
[329373917,1718290394711,-879.88,0.00029863,3]
[329373918,1718290394727,-1048.93,0.00029863,3]
[329373919,1718290394739,-1012.91,0.00029863,3]
[329373920,1718290394759,-11632.61,0.00029863,3]
[329373921,1718290394773,-977.44,0.00029863,3]
[329373922,1718290394794,-639.07,0.00029863,3]
[329373923,1718290394833,-651.87,0.00029863,3]
[329373924,1718290394853,-997.51,0.00029863,3]
[329373925,1718290394868,-1311.35,0.00029863,3]
[329373926,1718290394882,-643.19,0.00029863,3]
[329373927,1718290394922,-2199.7,0.00029863,3]
[329373928,1718290394989,-1295.74,0.00029863,3]
[329373929,1718290395027,-613.68,0.00029863,3]
[329373930,1718290395042,-1323.91,0.00029863,3]
[329373931,1718290395056,-975.22,0.00029863,3]
[329373932,1718290395068,-1550.77,0.00029863,3]
[329373933,1718290395080,-513.36,0.00029863,3]
[329373934,1718290395113,-12766.99,0.00029863,3]
[329373935,1718290395128,-559.41,0.00029863,3]
[329373936,1718290395146,-500.0,0.00029863,3]
[329373937,1718290395165,-679.33,0.00029863,3]
[329373938,1718290395191,-3794.7,0.00029863,3]
[329373939,1718290395206,-1057.5,0.00029863,3]
[329373940,1718290395224,-500.0,0.00029863,3]
[329373941,1718290395237,-2414.22,0.00029863,3]
[329373942,1718290395252,-654.22,0.00029863,3]
[329373943,1718290395267,-1125.9,0.00029863,3]
[329373944,1718290395285,-500.0,0.00029863,3]
[329373945,1718290395310,-941.25,0.00029863,3]
[329373946,1718290395336,-531.14,0.00029863,3]
[329373947,1718290395347,-1033.7,0.00029863,3]
[329373948,1718290395372,-2592.34,0.00029863,3]
[329373949,1718290395393,-500.0,0.00029863,3]
[329373950,1718290395421,-588.3,0.00029863,3]
[329373951,1718290395452,-500.0,0.00029863,3]
[329373952,1718290395472,-570.91,0.00029863,3]
[329373953,1718290395491,-1292.93,0.00029863,3]
[329373954,1718290395520,-637.83,0.00029863,3]
[329373955,1718290395531,-533.76,0.00029863,3]
[329373956,1718290395544,-500.0,0.00029863,2]
[329373957,1718290395559,-500.0,0.00029863,2]
[329373958,1718290395570,-500.0,0.00029863,2]
[329373959,1718290395585,-500.0,0.00029863,3]
[329373960,1718290395601,-500.0,0.00029863,3]
[329373961,1718290395613,-500.0,0.00029863,3]
[329373962,1718290395623,-500.0,0.00029863,3]
[329373963,1718290395634,-500.0,0.00029863,3]
[329373964,1718290395645,-500.0,0.00029863,3]
[329373965,1718290395658,-500.0,0.00029863,3]
[329373966,1718290395674,-816.12,0.00029863,3]
[329373967,1718290395691,-500.0,0.00029863,3]
[329373968,1718290395722,-500.0,0.00029863,3]
[329373969,1718290395732,-365.18369726,0.00029863,3]
[329373970,1718290395784,-2201.98,0.00029863,3]
[329373971,1718290395806,-990.35,0.00029863,3]
[329373972,1718290395828,-866.3,0.00029863,3]
[329373973,1718290395841,-1039.78,0.00029863,3]
[329373974,1718290395853,-1827.63,0.00029863,3]
[329373975,1718290395865,-1377.98,0.00029863,3]
[329373976,1718290395879,-511.34,0.00029863,3]
[329373977,1718290395896,-500.0,0.00029863,3]
[329373978,1718290395912,-1395.84,0.00029863,3]
[329373979,1718290395924,-653.41,0.00029863,3]
[329373980,1718290395949,-4825.81,0.00029863,3]
[329373981,1718290395991,-689.6,0.00029863,3]
[329373982,1718290396022,-2127.64,0.00029863,3]
[329373983,1718290396112,-761.09,0.00029863,3]
[329373984,1718290396132,-587.76,0.00029863,3]
[329373985,1718290396156,-605.86,0.00029863,3]
[329373986,1718290396170,-1177.4,0.00029863,3]
[329373987,1718290396194,-920.47,0.00029863,3]
[329373988,1718290396211,-1386.9,0.00029863,3]
[329373989,1718290396226,-887.49,0.00029863,3]
[329373990,1718290396244,-744.26,0.00029863,3]
[329373991,1718290396288,-7491.49,0.00029863,3]
[329373992,1718290396322,-500.0,0.00029865,3]
[329373993,1718290396408,-500.0,0.00029865,3]
[329373994,1718290396421,-330.21952799,0.00029867,2]
[329373995,1718290396443,-500.0,0.0002987,2]
[329373996,1718290396474,-500.0,0.00029873,3]
[329373997,1718290396509,-500.0,0.00029874,3]
[329373998,1718290396521,-500.0,0.00029882,3]
[329373999,1718290396546,-500.0,0.00029882,3]
[329374000,1718290396578,-500.0,0.0002989,5]
[329374001,1718290396605,-500.0,0.0002989,5]
[329374002,1718290396637,-500.0,0.0002989,5]
[329374003,1718290396660,-500.0,0.0002989,5]
[329374004,1718290396672,-500.0,0.0002989,5]
[329374005,1718290396717,-500.0,0.0002989,5]
[329374006,1718290396747,-500.0,0.0002989,5]
[329374007,1718290396760,-508.53156283,0.0002989,5]
[329374008,1718290396796,-500.0,0.00029891,3]
[329374009,1718290396820,-500.0,0.00029891,3]
[329374010,1718290396837,-150.0,0.00029896,7]
[329374011,1718290396849,-81827.95580583,0.00029897,10]
[329374012,1718290396890,-100667.96523457,0.00029899,2]
[329374013,1718290396903,-500.0,0.000299,3]
[329374014,1718290396915,-5000.0,0.000299,5]
[329374015,1718290396931,-500.0,0.000299,3]
[329374016,1718290396954,-12098.40973595,0.000299,2]
[329374017,1718290396969,-5373.51,0.000299,2]
[329374018,1718290396988,-152.13270086,0.000299,2]
[329374019,1718290397002,-15548.41599283,0.000299,15]
[329374020,1718290397013,-161.23,0.000299,7]
[329374021,1718290397031,-324.12418971,0.000299,2]
[329374022,1718290397044,-220.43278996,0.000299,2]
[329374023,1718290397056,-500.0,0.00029909,3]
[329374024,1718290397070,-16000.0,0.00029912,3]
[329374025,1718290397098,-10642.54193815,0.00029913,3]
[329374026,1718290397120,-342.539093,0.00029913,3]
[329374027,1718290397134,-785.92,0.00029929,15]
[329374028,1718290397146,-28125.15233673,0.00029933,2]
[329374029,1718290397157,-1863.468802,0.0002994,10]
[329374030,1718290397168,-157.061313,0.00029947,26]
[329374031,1718290397184,-156.061313,0.00029947,24]
[329374032,1718290397197,-786.269231,0.00029948,26]
[329374033,1718290397207,-64789.22670831,0.0002995,9]
[329374034,1718290397218,-500.0,0.00029952,3]
[329374035,1718290397237,-1000.0,0.0002996,10]
[329374036,1718290397248,-500.0,0.0002996,3]
[329374037,1718290397292,-500.0,0.00029969,3]
[329374038,1718290397306,-502.06779091,0.0002997,3]
[329374039,1718290397322,-154.24759554,0.0002997,2]
[329374040,1718290397336,-152.1899555,0.00029975,2]
[329374041,1718290397347,-16000.0,0.00029978,3]
[329374042,1718290397372,-500.0,0.00029978,3]
[329374043,1718290397383,-923.2125293,0.00029979,2]
[329374044,1718290397394,-833.4430511,0.00029979,2]
[329374045,1718290397405,-743.6735728,0.00029979,2]
[329374046,1718290397417,-653.9040946,0.00029979,2]
[329374047,1718290397428,-564.1346164,0.00029979,2]
[329374048,1718290397467,-29709.5355738,0.00029979,2]
[329374049,1718290397481,-35120.0723029,0.00029979,2]
[329374050,1718290397493,-40530.609032,0.00029979,2]
[329374051,1718290397508,-45941.1457611,0.00029979,2]
[329374052,1718290397520,-51351.6824902,0.00029979,2]
[329374053,1718290397531,-543.9257285,0.00029979,2]
[329374054,1718290397544,-642.9824816,0.00029979,2]
[329374055,1718290397561,-742.0392348,0.00029979,2]
[329374056,1718290397572,-841.0959879,0.00029979,2]
[329374057,1718290397735,-940.1527411,0.00029979,2]
[329374058,1718290397748,-1000.0,0.0002998,10]
[329374059,1718290397764,-9059.00672049,0.0002999,2]
[329374060,1718290397788,-313952.98758951,0.0002999,2]
[329374061,1718290397827,-160.0,0.0002999,2]
[329374062,1718290397838,-767.0,0.00029997,2]
[329374063,1718290397855,-649.0,0.00029997,2]
[329374064,1718290397872,-2643.2,0.00029999,30]
[329374065,1718290397899,-4500.0,0.00029999,30]
[329374066,1718290397912,-179.9246523,0.00029999,7]
[329374067,1718290397955,-838870.84950446,0.0003,2]
[329374068,1718290398409,-500.0,0.00024109,2]
[329374069,1718290398421,-373.88559492,0.00024383,2]
[329374070,1718290400255,5000.0,0.0001,2]
[329374071,1718290410241,718.08085508,9.999e-05,2]
[329374073,1718291103977,155.5692436,9.999e-05,2]
[329374074,1718291105196,1064.768415,9.999e-05,2]
[329374075,1718291105295,1443.33228703,9.999e-05,2]
[329374076,1718291105387,348.0464717,9.999e-05,2]
[329374077,1718291109125,180.76997474,0.0001,2]
[329374078,1718291110086,299.86157995,0.0001,2]
[329374079,1718291111442,6747.02647076,9.999e-05,2]
[329374080,1718291112344,155.0,9.999e-05,2]
[329374081,1718291112884,410.89401693,0.0001,2]
[329374082,1718291122193,345.17149008,9.999e-05,2]
[329374084,1718291127260,69.89770881,0.0001,2]
[329374085,1718291127314,162.81932664,0.0001,2]
[329374086,1718291128325,155.0,9.999e-05,2]
[329374087,1718291130829,410.89401693,0.0001,2]
[329374088,1718291146856,254.41158524,0.0001,2]
[329374089,1718291148331,157.81981447,9.999e-05,2]
[329374090,1718291233366,-1000.0,0.000138,2]
[329374091,1718291233427,-2500.0,0.000138,2]
[329374092,1718291233468,-193.18760792,0.00013898,2]
[329374093,1718291233513,-300.0,0.00013899,2]
[329374094,1718291233564,-85806.81239208,0.000139,2]
[329374114,1718291434081,-300.0,0.00013899,2]
[329374117,1718291434097,-265.2208109,0.00013899,2]
[329374129,1718291435154,-121.76186527,0.00013899,2]
[329374130,1718291435198,-58047.61620792,0.000139,2]
[329374131,1718291435234,-97919.3197,0.000139,2]
[329374132,1718291435246,-28171.73971749,0.000139,2]
[329374133,1718291435265,-316.92510636,0.00013999,2]
[329374134,1718291435300,-1478.74966227,0.00013999,2]
[329374135,1718291435335,-162.67638864,0.00013999,2]
[329374136,1718291435374,-217.4798775,0.00013999,2]
[329374137,1718291435393,-200.0,0.00014254,2]
[329374138,1718291435421,-3856.644478,0.00015,2]
[329374139,1718291435478,-420.0,0.00015229,2]
[329374140,1718291435497,-200.0,0.00016035,2]
[329374141,1718291435516,-499.99,0.00016686,2]
[329374142,1718291435550,-587.0,0.00016686,2]
[329374143,1718291435580,-200.0,0.00017817,2]
[329374144,1718291435594,-823.0,0.00018282,2]
[329374145,1718291435612,-314.37,0.00018667,2]
[329374146,1718291435677,-411.07916426,0.00019,2]
[329374147,1718291435707,-200.0,0.00019599,2]
[329374148,1718291435718,-1152.0,0.00020031,2]
[329374149,1718291435729,-607.18,0.00020429,2]
[329374150,1718291435741,-150.0,0.00020561,2]
[329374151,1718291435764,-427.65947887,0.00020571,2]
[329374152,1718291435781,-910.34052113,0.00020571,2]
[329374153,1718291435797,-767.95,0.00020581,2]
[329374154,1718291435821,-254.91,0.00020606,2]
[329374155,1718291435834,-178.8,0.00020639,2]
[329374156,1718291435859,-250.0,0.00020698,2]
[329374157,1718291435874,-431.4,0.00020719,2]
[329374158,1718291435894,-500.0,0.00020722,2]
[329374159,1718291435907,-155.36,0.00020739,2]
[329374160,1718291435926,-2751.0,0.00020752,2]
[329374161,1718291435948,-250.0,0.00020778,2]
[329374162,1718291435964,-155.36,0.00020919,2]
[329374163,1718291435978,-314.37,0.00020931,2]
[329374164,1718291436008,-155.36,0.000211,2]
[329374165,1718291436048,-155.36,0.0002128,2]
[329374166,1718291436069,-800.0,0.00021285,2]
[329374167,1718291436084,-200.0,0.0002138,2]
[329374168,1718291436107,-155.36,0.0002146,2]
[329374169,1718291436133,-155.36,0.0002164,2]
[329374170,1718291436150,-808.0,0.00021683,2]
[329374171,1718291436165,-150.0,0.00021683,2]
[329374172,1718291436190,-82.86236305,0.00021683,2]
[329374173,1718291436211,-364.13763695,0.00021683,2]
[329374174,1718291436224,-155.31425523,0.00021683,2]
[329374175,1718291436273,-161.26674477,0.00021683,2]
[329374176,1718291436309,-1978.0,0.00021683,2]
[329374177,1718291436323,-1828.13922907,0.00021683,2]
[329374179,1718291436341,-263.47322908,0.00021683,2]
[329374181,1718291436356,-1084.38754185,0.00021683,2]
[329374182,1718291436374,-155.36,0.0002182,2]
[329374183,1718291436387,-435.99,0.00021918,2]
[329374184,1718291436403,-52.27117735,0.00021918,2]
[329374185,1718291436420,-197.72882265,0.00021918,2]
[329374186,1718291436447,-418.04169735,0.00021947,2]
[329374187,1718291436476,-1194.95830265,0.00021947,2]
[329374188,1718291436489,-169.26,0.00022178,2]
[329374189,1718291436501,-1343.0,0.000224,5]
[329374190,1718291436526,-314.37,0.00023195,2]
[329374191,1718291436540,-767.95,0.00023321,2]
[329374192,1718291436565,-800.0,0.00023945,2]
[329374193,1718291436577,-732.89509612,0.00024047,2]
[329374194,1718291437264,-92.37646053,0.00024047,2]
[329374195,1718291437460,-359.63841064,0.00024047,2]
[329374196,1718291437563,-1073.09003271,0.00024047,2]
[329374197,1718291437585,-206.0593275,0.00024108,2]
[329374198,1718291437609,-316.26897551,0.00024109,2]
[329374199,1718291437638,-500.0,0.00024109,2]
[329374200,1718291437656,-500.0,0.00024109,2]
[329374201,1718291437691,-500.0,0.00024109,2]
[329374202,1718291437712,-432.68126094,0.00024109,2]
[329374203,1718291437760,-67.31873906,0.00024109,2]
[329374204,1718291437792,-286.085,0.00024109,2]
[329374205,1718291437805,-411.20253043,0.00024109,2]
[329374207,1718291440834,-88.79746957,0.00024109,2]
[329374208,1718291440861,-221.98296149,0.00024109,2]
[329374209,1718291440895,-500.0,0.00024109,2]
[329374210,1718291440931,-344.11953894,0.00024109,2]
[329374211,1718291440946,-155.88046106,0.00024109,2]
[329374212,1718291440958,-500.0,0.00024109,2]
[329374213,1718291440970,-500.0,0.00024109,2]
[329374214,1718291440996,-500.0,0.00024109,2]
[329374215,1718291441010,-500.0,0.00024109,2]
[329374216,1718291441024,-517.38287921,0.00024109,2]
[329374217,1718291441104,-500.0,0.00024109,2]
[329374218,1718291441128,-13.02932669,0.00024109,2]
[329374219,1718291441155,-136.97067331,0.00024109,2]
[329374220,1718291441196,-500.0,0.00024109,2]
[329374221,1718291441212,-163.02932669,0.00024109,2]
[329374222,1718291441228,-56.22914402,0.00024109,2]
[329374223,1718291441242,-500.0,0.00024109,2]
[329374224,1718291441272,-500.0,0.00024109,2]
[329374225,1718291441292,-500.0,0.00024109,2]
[329374226,1718291441306,-248.98236522,0.00024109,2]
[329374227,1718291441334,-251.01763478,0.00024109,2]
[329374228,1718291441349,-139.88232698,0.00024109,2]
[329374229,1718291441382,-360.11767302,0.00024109,2]
[329374230,1718291441603,-500.0,0.00024109,2]
[329374231,1718291441628,-500.0,0.00024109,2]
[329374232,1718291441657,-500.0,0.00024109,2]
[329374233,1718291441684,-500.0,0.00024109,2]
[329374234,1718291441694,-500.0,0.00024109,2]
[329374235,1718291441721,-500.0,0.00024109,2]
[329374236,1718291441740,-323.22227999,0.00024109,2]
[329374237,1718291441756,-176.77772001,0.00024109,2]
[329374238,1718291441787,-500.0,0.00024109,2]
[329374239,1718291441798,-201.92895081,0.00024109,2]
[329374240,1718291441815,-298.07104919,0.00024109,2]
[329374241,1718291441848,-506.27664214,0.00024109,2]
[329374242,1718291441892,-500.0,0.00024109,2]
[329374243,1718291441928,-149.80821979,0.00024109,2]
[329374244,1718291441943,-296.05307371,0.00024109,2]
[329374246,1718291441961,-54.1387065,0.00024109,2]
[329374249,1718291442044,-323.3846381,0.00024109,2]
[329374251,1718291442085,-176.6153619,0.00024109,2]
[329374253,1718291442099,-500.0,0.00024109,2]
[329374254,1718291442118,-1176.01,0.00024109,2]
[329374255,1718291442129,-500.0,0.00024109,2]
[329374256,1718291442153,-500.0,0.00024109,2]
[329374257,1718291442181,-373.02504392,0.00024109,2]
[329374258,1718291442210,-500.0,0.00024109,2]
[329374259,1718291442222,-500.0,0.00024109,2]
[329374260,1718291442264,-499.01409009,0.00024109,2]
[329374261,1718291442316,-500.0,0.00024109,2]
[329374262,1718291442340,-500.0,0.00024109,2]
[329374263,1718291442360,-799.67,0.00024109,2]
[329374264,1718291442373,-500.0,0.00024109,2]
[329374265,1718291442384,-500.0,0.00024109,2]
[329374266,1718291442394,-500.0,0.00024109,2]
[329374267,1718291442408,-500.0,0.00024109,2]
[329374268,1718291442438,-500.0,0.00024109,2]
[329374269,1718291442464,-500.0,0.00024109,2]
[329374270,1718291442475,-500.0,0.00024109,2]
[329374271,1718291442500,-500.0,0.00024109,2]
[329374272,1718291442535,-500.0,0.00024109,2]
[329374273,1718291442557,-500.0,0.00024109,2]
[329374274,1718291442570,-500.0,0.00024109,2]
[329374275,1718291442590,-500.0,0.00024109,2]
[329374276,1718291442603,-500.0,0.00024109,2]
[329374277,1718291442615,-500.0,0.00024109,2]
[329374278,1718291442631,-500.0,0.00024109,2]
[329374279,1718291442654,-500.0,0.00024109,2]
[329374280,1718291442675,-500.0,0.00024109,2]
[329374281,1718291442691,-352.17051292,0.00024109,2]
[329374282,1718291442714,-500.0,0.00024109,2]
[329374283,1718291442728,-500.0,0.00024109,2]
[329374284,1718291442741,-500.0,0.00024109,2]
[329374285,1718291442754,-500.0,0.00024109,2]
[329374286,1718291442780,-527.29,0.00024109,2]
[329374287,1718291442810,-500.0,0.00024109,2]
[329374288,1718291442840,-99.25590691,0.00024109,2]
[329374289,1718291442900,-400.74409309,0.00024109,2]
[329374290,1718291442917,-500.0,0.00024109,2]
[329374291,1718291442959,-500.0,0.00024109,2]
[329374292,1718291442969,-500.0,0.00024109,2]
[329374293,1718291442991,-500.0,0.00024109,2]
[329374294,1718291443014,-500.0,0.00024109,2]
[329374295,1718291443046,-302.03403951,0.00024109,2]
[329374296,1718291443061,-289.93596049,0.00024109,2]
[329374297,1718291443075,-152.31403951,0.00024109,2]
[329374311,1718291444972,-303.27304,0.00024109,2]
[329374312,1718291445028,-357.67292049,0.00024109,2]
[329374313,1718291445040,-696.09,0.00024109,2]
[329374314,1718291445072,-500.0,0.00024109,2]
[329374315,1718291445102,-383.50352174,0.00024109,2]
[329374316,1718291445133,-116.49647826,0.00024109,2]
[329374317,1718291445150,-500.0,0.00024109,2]
[329374318,1718291445167,-500.0,0.00024109,2]
[329374319,1718291445184,-500.0,0.00024109,2]
[329374320,1718291445216,-500.0,0.00024109,2]
[329374321,1718291445239,-500.0,0.00024109,2]
[329374322,1718291445253,-400.75952174,0.00024109,2]
[329374323,1718291445279,-99.24047826,0.00024109,2]
[329374324,1718291445304,-500.0,0.00024109,2]
[329374325,1718291445316,-500.0,0.00024109,2]
[329374326,1718291445335,-500.0,0.00024109,2]
[329374327,1718291445347,-500.0,0.00024109,2]
[329374328,1718291445359,-500.0,0.00024109,2]
[329374329,1718291445375,-500.0,0.00024109,2]
[329374330,1718291445387,-281.18435574,0.00024109,2]
[329374331,1718291445405,-218.81564426,0.00024109,2]
[329374332,1718291445421,-287.54759974,0.00024109,2]
[329374333,1718291445444,-212.45240026,0.00024109,2]
[329374334,1718291445467,-1063.91,0.00024109,2]
[329374335,1718291445479,-500.0,0.00024109,2]
[329374336,1718291445498,-500.0,0.00024109,2]
[329374337,1718291445533,-500.0,0.00024109,2]
[329374338,1718291445553,-587.78759974,0.00024109,2]
[329374339,1718291445570,-38.24240026,0.00024109,2]
[329374340,1718291445624,-500.0,0.00024109,2]
[329374341,1718291445636,-500.0,0.00024109,2]
[329374342,1718291445649,-500.0,0.00024109,2]
[329374343,1718291445662,-710.66,0.00024109,2]
[329374344,1718291445683,-500.0,0.00024109,2]
[329374345,1718291445699,-500.0,0.00024109,2]
[329374346,1718291445742,-500.0,0.00024109,2]
[329374347,1718291445754,-500.0,0.00024109,2]
[329374348,1718291445767,-767.83,0.00024109,2]
[329374349,1718291445788,-500.0,0.00024109,2]
[329374350,1718291445808,-969.39,0.00024109,2]
[329374351,1718291445832,-586.19,0.00024109,2]
[329374352,1718291445850,-500.0,0.00024109,2]
[329374353,1718291445872,-500.0,0.00024109,2]
[329374354,1718291445914,-570.51,0.00024109,2]
[329374355,1718291445932,-500.0,0.00024109,2]
[329374356,1718291445964,-624.29,0.00024109,2]
[329374357,1718291445981,-500.0,0.00024109,2]
[329374358,1718291445998,-500.0,0.00024109,2]
[329374359,1718291446044,-500.0,0.00024109,2]
[329374360,1718291446064,-500.0,0.00024109,2]
[329374361,1718291446093,-522.13009389,0.00024109,2]
[329374362,1718291446105,-500.0,0.00024109,2]
[329374363,1718291446127,-500.0,0.00024109,2]
[329374364,1718291446151,-1076.72279401,0.00024109,2]
[329374367,1718291448862,-147.06720599,0.00024109,2]
[329374368,1718291448877,-369.96766455,0.00024109,2]
[329374369,1718291448892,-130.03233545,0.00024109,2]
[329374370,1718291448904,-538.86101636,0.00024109,2]
[329374371,1718291448938,-1170.66,0.00024109,2]
[329374372,1718291448974,-67.38312327,0.00024109,2]
[329374373,1718291449024,-432.61687673,0.00024109,2]
[329374374,1718291449063,-410.54085975,0.00024109,2]
[329374375,1718291449093,-89.45914025,0.00024109,2]
[329374376,1718291449129,-269.05585975,0.00024109,2]
[329374377,1718291449185,-230.94414025,0.00024109,2]
[329374378,1718291449224,-500.0,0.00024109,2]
[329374379,1718291449239,-180.0,0.0002423,2]
[329374380,1718291449251,-573.83013473,0.00024283,2]
[329374381,1718291449296,-300.0,0.00024283,2]
[329374382,1718291449340,-500.0,0.00024383,2]
[329374383,1718291449355,-500.0,0.00024383,2]
[329374384,1718291449396,-500.0,0.00024383,2]
[329374385,1718291449454,-224.26855223,0.00024383,2]
[329374386,1718291449465,-535.54562882,0.00024383,2]
[329374387,1718291449477,-500.0,0.00024383,2]
[329374388,1718291449496,-500.0,0.00024383,2]
[329374389,1718291449508,-225.32532052,0.00024383,2]
[329374390,1718291449564,-260.15423812,0.00024383,2]
[329374391,1718291449580,-241.97927229,0.00024383,2]
[329374392,1718291449615,-214.67476727,0.00024383,2]
[329374393,1718291449661,-500.0,0.00024383,2]
[329374394,1718291449675,-190.06,0.00024383,2]
[329374395,1718291449695,-500.0,0.00024383,2]
[329374396,1718291449747,-500.0,0.00024383,2]
[329374397,1718291449762,-515.90744029,0.00024383,2]
[329374398,1718291449792,-628.16,0.00024383,2]
[329374399,1718291449813,-649.91917058,0.00024383,2]
[329374400,1718291449856,-500.0,0.00024383,2]
[329374401,1718291449867,-500.0,0.00024383,2]
[329374402,1718291449888,-588.80712125,0.00024383,2]
[329374403,1718291449908,-400.59401095,0.00024383,2]
[329374404,1718291449921,-500.0,0.00024383,2]
[329374405,1718291449940,-500.0,0.00024383,2]
[329374406,1718291449953,-500.0,0.00024383,2]
[329374407,1718291449971,-500.0,0.00024383,2]
[329374409,1718291450002,-526.9207467,0.00024383,2]
[329374410,1718291450017,-500.0,0.00024383,2]
[329374411,1718291450032,-1176.01,0.00024383,2]
[329374412,1718291450049,-264.52608837,0.00024383,2]
[329374413,1718291450068,-235.47391163,0.00024383,2]
[329374414,1718291450093,-500.0,0.00024383,2]
[329374415,1718291450106,-500.0,0.00024383,2]
[329374416,1718291450132,-500.0,0.00024383,2]
[329374417,1718291450162,-799.67,0.00024383,2]
[329374418,1718291450178,-500.0,0.00024383,2]
[329374419,1718291450201,-214.85608837,0.00024383,2]
[329374420,1718291450226,-285.14391163,0.00024383,2]
[329374421,1718291450238,-200.5571408,0.00024383,2]
[329374422,1718291450336,-500.0,0.00024109,2]
[329374423,1718291450349,-500.0,0.00024109,2]
[329374424,1718291450361,-85.140985,0.00024383,2]
[329374425,1718291450376,-214.3018742,0.00024383,2]
[329374426,1718291450402,-500.0,0.00024383,2]
[329374427,1718291450414,-628.42,0.00024383,2]
[329374428,1718291450448,-54.04563307,0.00024383,2]
[329374429,1718291450474,-445.95436693,0.00024383,2]
[329374430,1718291450486,-500.0,0.00024383,2]
[329374431,1718291450520,-500.0,0.00024383,2]
[329374432,1718291450536,-500.0,0.00024383,2]
[329374433,1718291450572,-500.0,0.00024383,2]
[329374434,1718291450583,-500.0,0.00024383,2]
[329374435,1718291450594,-500.0,0.00024383,2]
[329374436,1718291450612,-500.0,0.00024383,2]
[329374437,1718291450635,-500.0,0.00024383,2]
[329374438,1718291450668,-500.0,0.00024383,2]
[329374439,1718291450695,-500.0,0.00024383,2]
[329374440,1718291450708,-500.0,0.00024383,2]
[329374441,1718291450733,-500.0,0.00024383,2]
[329374442,1718291450747,-500.0,0.00024383,2]
[329374443,1718291450800,-500.0,0.00024383,2]
[329374444,1718291450836,-562.50189855,0.00024383,2]
[329374445,1718291450861,-527.29,0.00024383,2]
[329374446,1718291450884,-500.0,0.00024383,2]
[329374448,1718291450896,-619.02854613,0.00024383,2]
[329374449,1718291450922,-500.0,0.00024383,2]
[329374450,1718291450939,-500.0,0.00024383,2]
[329374451,1718291450957,-500.0,0.00024383,2]
[329374452,1718291450969,-500.0,0.00024383,2]
[329374453,1718291450989,-500.0,0.00024383,2]
[329374454,1718291451013,-591.97,0.00024383,2]
[329374455,1718291451028,-813.26,0.00024383,2]
[329374456,1718291451039,-696.09,0.00024383,2]
[329374457,1718291451051,-500.0,0.00024383,2]
[329374458,1718291451066,-500.0,0.00024383,2]
[329374459,1718291451093,-500.0,0.00024383,2]
[329374460,1718291451107,-500.0,0.00024383,2]
[329374461,1718291451130,-500.0,0.00024383,2]
[329374462,1718291451146,-500.0,0.00024383,2]
[329374463,1718291451191,-500.0,0.00024383,2]
[329374464,1718291451213,-522.83994181,0.00024383,2]
[329374465,1718291451260,-500.0,0.00024383,2]
[329374466,1718291451288,-500.0,0.00024383,2]
[329374467,1718291451318,-500.0,0.00024383,2]
[329374468,1718291451367,-400.70952634,0.00024383,2]
[329374469,1718291451379,-500.0,0.00024383,2]